[Event "Titled Tuesday Blitz March 22 Late 2022"]
[White "Delorme, Alban"]
[Black "Taichman, Ori"]
[WhiteFideId "623636"]
[BlackFideId "2804069"]
[WhiteElo "2197"]
[BlackElo "2227"]
[Result "1/2-1/2"]
[Round "01"]
[TimeControl "180+1"]
[Date "2022.03.22"]
[WhiteClock "0:00:07"]
[BlackClock "0:00:21"]

1. d4 {[%clk 0:02:59]}  Nf6 {[%clk 0:03:00]} 2. Nf3 {[%clk 0:03:00]}  g6 {[%clk 0:03:00]} 3. g3 {[%clk 0:02:55]}  Bg7 {[%clk 0:03:00]} 4. Bg2 {[%clk 0:02:54]}  O-O {[%clk 0:03:01]} 5. O-O {[%clk 0:02:53]}  d6 {[%clk 0:03:01]} 6. a4 {[%clk 0:02:52]}  c5 {[%clk 0:02:58]} 7. Nc3 {[%clk 0:02:47]}  Nc6 {[%clk 0:02:56]} 8. e4 {[%clk 0:02:47]}  cxd4 {[%clk 0:02:53]} 9. Nxd4 {[%clk 0:02:45]}  Rb8 {[%clk 0:02:49]} 10. h3 {[%clk 0:02:44]}  Bd7 {[%clk 0:02:46]} 11. Be3 {[%clk 0:02:43]}  Qc8 {[%clk 0:02:39]} 12. Kh2 {[%clk 0:02:40]}  Ne5 {[%clk 0:02:40]} 13. Qc1 {[%clk 0:02:26]}  Nc4 {[%clk 0:02:31]} 14. Bg5 {[%clk 0:02:23]}  Qc5 {[%clk 0:02:15]} 15. Nb3 {[%clk 0:02:20]}  Qb4 {[%clk 0:02:04]} 16. Bxf6 {[%clk 0:02:13]}  Bxf6 {[%clk 0:02:03]} 17. Nd5 {[%clk 0:02:12]}  Bxb2 {[%clk 0:02:01]} 18. Nxb4 {[%clk 0:02:09]}  Bxc1 {[%clk 0:02:01]} 19. Rfxc1 {[%clk 0:02:09]}  e6 {[%clk 0:01:51]} 20. Rd1 {[%clk 0:02:07]}  Rfc8 {[%clk 0:01:51]} 21. a5 {[%clk 0:01:57]}  Kf8 {[%clk 0:01:44]} 22. Bf1 {[%clk 0:01:53]}  Ne5 {[%clk 0:01:44]} 23. Rxd6 {[%clk 0:01:50]}  Ke7 {[%clk 0:01:42]} 24. Rad1 {[%clk 0:01:50]}  Ba4 {[%clk 0:01:38]} 25. f4 {[%clk 0:01:45]}  Nc4 {[%clk 0:01:29]} 26. Bxc4 {[%clk 0:01:41]}  Rxc4 {[%clk 0:01:30]} 27. R1d4 {[%clk 0:01:39]}  Bxb3 {[%clk 0:01:16]} 28. cxb3 {[%clk 0:01:38]}  Rxb4 {[%clk 0:01:16]} 29. Rd7+ {[%clk 0:01:37]}  Ke8 {[%clk 0:01:15]} 30. Rxb4 {[%clk 0:01:33]}  Kxd7 {[%clk 0:01:16]} 31. Kg2 {[%clk 0:01:33]}  b5 {[%clk 0:01:07]} 32. Rd4+ {[%clk 0:01:27]}  Ke7 {[%clk 0:00:59]} 33. e5 {[%clk 0:01:19]}  Rc8 {[%clk 0:00:51]} 34. Rd6 {[%clk 0:01:18]}  Rc2+ {[%clk 0:00:49]} 35. Kf3 {[%clk 0:01:14]}  Rc3+ {[%clk 0:00:49]} 36. Kg4 {[%clk 0:01:15]}  h5+ {[%clk 0:00:48]} 37. Kh4 {[%clk 0:01:12]}  Rxb3 {[%clk 0:00:48]} 38. Ra6 {[%clk 0:01:10]}  Ra3 {[%clk 0:00:39]} 39. Rxa7+ {[%clk 0:01:11]}  Kf8 {[%clk 0:00:39]} 40. a6 {[%clk 0:01:11]}  Kg7 {[%clk 0:00:38]} 41. g4 {[%clk 0:01:09]}  hxg4 {[%clk 0:00:35]} 42. hxg4 {[%clk 0:01:06]}  Rf3 {[%clk 0:00:34]} 43. Kg5 {[%clk 0:01:04]}  Ra3 {[%clk 0:00:24]} 44. Ra8 {[%clk 0:01:03]}  b4 {[%clk 0:00:21]} 45. a7 {[%clk 0:01:02]}  b3 {[%clk 0:00:21]} 46. Rb8 {[%clk 0:01:00]}  b2 {[%clk 0:00:19]} 47. Rb7 {[%clk 0:00:59]}  Rxa7 {[%clk 0:00:18]} 48. Rxb2 {[%clk 0:00:58]}  Ra3 {[%clk 0:00:17]} 49. Rb7 {[%clk 0:00:57]}  Rf3 {[%clk 0:00:17]} 50. Ra7 {[%clk 0:00:55]}  Rf1 {[%clk 0:00:17]} 51. Rb7 {[%clk 0:00:54]}  Rf2 {[%clk 0:00:17]} 52. Rc7 {[%clk 0:00:53]}  Rf3 {[%clk 0:00:18]} 53. Rc4 {[%clk 0:00:50]}  Rf1 {[%clk 0:00:15]} 54. Kh4 {[%clk 0:00:50]}  Rg1 {[%clk 0:00:14]} 55. Rb4 {[%clk 0:00:48]}  Kh6 {[%clk 0:00:14]} 56. Rb7 {[%clk 0:00:47]}  g5+ {[%clk 0:00:14]} 57. fxg5+ {[%clk 0:00:44]}  Kg6 {[%clk 0:00:14]} 58. Ra7 {[%clk 0:00:42]}  Re1 {[%clk 0:00:13]} 59. Ra8 {[%clk 0:00:39]}  Rxe5 {[%clk 0:00:13]} 60. Rg8+ {[%clk 0:00:38]}  Kh7 {[%clk 0:00:13]} 61. Rf8 {[%clk 0:00:39]}  Kg7 {[%clk 0:00:14]} 62. Re8 {[%clk 0:00:37]}  Re3 {[%clk 0:00:14]} 63. Re7 {[%clk 0:00:33]}  Kg6 {[%clk 0:00:12]} 64. Re8 {[%clk 0:00:31]}  Re1 {[%clk 0:00:11]} 65. Rg8+ {[%clk 0:00:30]}  Kh7 {[%clk 0:00:12]} 66. Ra8 {[%clk 0:00:29]}  Kg7 {[%clk 0:00:11]} 67. Kg3 {[%clk 0:00:29]}  e5 {[%clk 0:00:11]} 68. Ra6 {[%clk 0:00:28]}  Re4 {[%clk 0:00:11]} 69. Kf3 {[%clk 0:00:28]}  Rf4+ {[%clk 0:00:11]} 70. Kg3 {[%clk 0:00:28]}  Rf1 {[%clk 0:00:11]} 71. Kh4 {[%clk 0:00:28]}  e4 {[%clk 0:00:10]} 72. Kg3 {[%clk 0:00:25]}  Rf3+ {[%clk 0:00:10]} 73. Kg2 {[%clk 0:00:25]}  Rf4 {[%clk 0:00:10]} 74. Kg3 {[%clk 0:00:23]}  Rf3+ {[%clk 0:00:10]} 75. Kg2 {[%clk 0:00:23]}  Rb3 {[%clk 0:00:10]} 76. Ra4 {[%clk 0:00:22]}  Re3 {[%clk 0:00:07]} 77. Kf2 {[%clk 0:00:22]}  Rf3+ {[%clk 0:00:07]} 78. Kg2 {[%clk 0:00:22]}  Re3 {[%clk 0:00:07]} 79. Ra5 {[%clk 0:00:21]}  Kg6 {[%clk 0:00:07]} 80. Re5 {[%clk 0:00:19]}  Re2+ {[%clk 0:00:05]} 81. Kg3 {[%clk 0:00:18]}  Re3+ {[%clk 0:00:05]} 82. Kf4 {[%clk 0:00:17]}  Rf3+ {[%clk 0:00:05]} 83. Kxe4 {[%clk 0:00:17]}  Rf1 {[%clk 0:00:05]} 84. Rf5 {[%clk 0:00:15]}  Re1+ {[%clk 0:00:06]} 85. Kf4 {[%clk 0:00:12]}  Rf1+ {[%clk 0:00:06]} 86. Ke5 {[%clk 0:00:13]}  Rxf5+ {[%clk 0:00:06]} 87. gxf5+ {[%clk 0:00:12]}  Kxg5 {[%clk 0:00:07]} 88. Ke4 {[%clk 0:00:12]}  f6 {[%clk 0:00:07]} 89. Ke3 {[%clk 0:00:11]}  Kg4 {[%clk 0:00:08]} 90. Ke4 {[%clk 0:00:10]}  Kg3 {[%clk 0:00:08]} 91. Ke3 {[%clk 0:00:09]}  Kh4 {[%clk 0:00:08]} 92. Ke4 {[%clk 0:00:08]}  Kg5 {[%clk 0:00:08]} 93. Ke3 {[%clk 0:00:09]}  Kxf5 {[%clk 0:00:09]} 94. Kf3 {[%clk 0:00:08]}  Kg5 {[%clk 0:00:09]} 95. Kg3 {[%clk 0:00:08]}  f5 {[%clk 0:00:10]} 96. Kf3 {[%clk 0:00:09]}  f4 {[%clk 0:00:11]} 97. Kf2 {[%clk 0:00:09]}  Kg4 {[%clk 0:00:12]} 98. Kg2 {[%clk 0:00:07]}  Kf5 {[%clk 0:00:13]} 99. Kf3 {[%clk 0:00:08]}  Kg5 {[%clk 0:00:13]} 100. Kf2 {[%clk 0:00:08]}  Kg4 {[%clk 0:00:14]} 101. Kg2 {[%clk 0:00:08]}  f3+ {[%clk 0:00:15]} 102. Kf2 {[%clk 0:00:08]}  Kf4 {[%clk 0:00:16]} 103. Kf1 {[%clk 0:00:09]}  Kg3 {[%clk 0:00:16]} 104. Kg1 {[%clk 0:00:09]}  Kh3 {[%clk 0:00:17]} 105. Kf2 {[%clk 0:00:09]}  Kg4 {[%clk 0:00:17]} 106. Kf1 {[%clk 0:00:10]}  Kg3 {[%clk 0:00:18]} 107. Kg1 {[%clk 0:00:10]}  Kf4 {[%clk 0:00:19]} 108. Kf2 {[%clk 0:00:11]}  Ke4 {[%clk 0:00:19]} 109. Kf1 {[%clk 0:00:10]}  Kd3 {[%clk 0:00:18]} 110. Kf2 {[%clk 0:00:10]}  Ke4 {[%clk 0:00:19]} 111. Kf1 {[%clk 0:00:11]}  Ke3 {[%clk 0:00:20]} 112. Ke1 {[%clk 0:00:09]}  Kf4 {[%clk 0:00:20]} 113. Kf2 {[%clk 0:00:07]}  Kg4 {[%clk 0:00:20]} 114. Kf1 {[%clk 0:00:07]}  Kg3 {[%clk 0:00:21]} 1/2-1/2


[Site "https://www.chess.com"]

[Event "Titled Tuesday Blitz March 22 Late 2022"]
[White "Estrada Nieto, Julian"]
[Black "Belous, Vladimir"]
[WhiteFideId "5101018"]
[BlackFideId "4174003"]
[WhiteElo "2246"]
[BlackElo "2534"]
[Result "0-1"]
[Round "01"]
[TimeControl "180+1"]
[Date "2022.03.22"]
[WhiteClock "0:01:27"]
[BlackClock "0:02:26"]

1. e4 {[%clk 0:02:59]}  c5 {[%clk 0:02:59]} 2. Nf3 {[%clk 0:02:58]}  Nc6 {[%clk 0:03:00]} 3. Bb5 {[%clk 0:02:57]}  g6 {[%clk 0:02:58]} 4. Bxc6 {[%clk 0:02:57]}  dxc6 {[%clk 0:02:54]} 5. d3 {[%clk 0:02:57]}  Bg7 {[%clk 0:02:54]} 6. h3 {[%clk 0:02:57]}  b6 {[%clk 0:02:52]} 7. Nc3 {[%clk 0:02:57]}  Nh6 {[%clk 0:02:52]} 8. Be3 {[%clk 0:02:53]}  f6 {[%clk 0:02:52]} 9. Qd2 {[%clk 0:02:41]}  Nf7 {[%clk 0:02:51]} 10. g4 {[%clk 0:02:42]}  e5 {[%clk 0:02:43]} 11. O-O-O {[%clk 0:02:39]}  Be6 {[%clk 0:02:44]} 12. Nh2 {[%clk 0:02:23]}  Qe7 {[%clk 0:02:41]} 13. f4 {[%clk 0:02:21]}  exf4 {[%clk 0:02:42]} 14. Bxf4 {[%clk 0:02:20]}  O-O-O {[%clk 0:02:42]} 15. Qe2 {[%clk 0:02:16]}  Kb7 {[%clk 0:02:42]} 16. Nf3 {[%clk 0:02:15]}  Rhe8 {[%clk 0:02:37]} 17. Kb1 {[%clk 0:02:10]}  Nd6 {[%clk 0:02:33]} 18. Rhe1 {[%clk 0:02:05]}  Nb5 {[%clk 0:02:31]} 19. Nxb5 {[%clk 0:01:59]}  cxb5 {[%clk 0:02:32]} 20. e5 {[%clk 0:01:59]}  Bd5 {[%clk 0:02:29]} 21. Qf2 {[%clk 0:01:46]}  Qf7 {[%clk 0:02:28]} 22. b3 {[%clk 0:01:44]}  fxe5 {[%clk 0:02:27]} 23. Bg5 {[%clk 0:01:28]}  Qxf3 {[%clk 0:02:25]} 24. Qxf3 {[%clk 0:01:27]}  Bxf3 {[%clk 0:02:26]} 0-1


[Site "https://www.chess.com"]

[Event "Titled Tuesday Blitz March 22 Late 2022"]
[White "Fieberg, Samuel"]
[Black "Beerdsen, Thomas"]
[WhiteFideId "12901717"]
[BlackFideId "1030108"]
[WhiteElo "2461"]
[BlackElo "2585"]
[Result "0-1"]
[Round "01"]
[TimeControl "180+1"]
[Date "2022.03.22"]
[WhiteClock "0:00:21"]
[BlackClock "0:00:27"]

1. e4 {[%clk 0:03:00]}  e5 {[%clk 0:02:58]} 2. Nf3 {[%clk 0:03:01]}  Nc6 {[%clk 0:02:59]} 3. Bc4 {[%clk 0:03:01]}  f5 {[%clk 0:03:00]} 4. d3 {[%clk 0:02:56]}  d6 {[%clk 0:03:00]} 5. O-O {[%clk 0:02:52]}  f4 {[%clk 0:02:59]} 6. h3 {[%clk 0:02:48]}  g5 {[%clk 0:02:58]} 7. Nh2 {[%clk 0:02:28]}  h5 {[%clk 0:02:51]} 8. Bxg8 {[%clk 0:02:27]}  Rxg8 {[%clk 0:02:49]} 9. Qxh5+ {[%clk 0:02:27]}  Ke7 {[%clk 0:02:45]} 10. Nc3 {[%clk 0:02:21]}  Be6 {[%clk 0:02:41]} 11. Nd5+ {[%clk 0:02:20]}  Kd7 {[%clk 0:02:39]} 12. Ng4 {[%clk 0:02:17]}  Be7 {[%clk 0:02:27]} 13. Qh7 {[%clk 0:02:03]}  Rh8 {[%clk 0:02:08]} 14. Qg7 {[%clk 0:01:36]}  Kc8 {[%clk 0:01:55]} 15. Nxe7+ {[%clk 0:01:32]}  Nxe7 {[%clk 0:01:56]} 16. Qxg5 {[%clk 0:01:30]}  b6 {[%clk 0:01:49]} 17. d4 {[%clk 0:01:28]}  Bxg4 {[%clk 0:01:47]} 18. Qxg4+ {[%clk 0:01:28]}  Kb7 {[%clk 0:01:48]} 19. dxe5 {[%clk 0:01:22]}  dxe5 {[%clk 0:01:49]} 20. Rd1 {[%clk 0:01:19]}  Qf8 {[%clk 0:01:27]} 21. Qe6 {[%clk 0:01:14]}  f3 {[%clk 0:01:23]} 22. Bg5 {[%clk 0:01:08]}  Nc6 {[%clk 0:01:20]} 23. g3 {[%clk 0:00:58]}  Re8 {[%clk 0:01:12]} 24. Qg4 {[%clk 0:00:52]}  Nd4 {[%clk 0:01:08]} 25. Rxd4 {[%clk 0:00:51]}  exd4 {[%clk 0:01:09]} 26. Rd1 {[%clk 0:00:50]}  Qc5 {[%clk 0:01:08]} 27. Rd2 {[%clk 0:00:41]}  a5 {[%clk 0:00:57]} 28. h4 {[%clk 0:00:39]}  Rhf8 {[%clk 0:00:55]} 29. Bf4 {[%clk 0:00:39]}  Rxe4 {[%clk 0:00:53]} 30. Qxf3 {[%clk 0:00:39]}  Qc6 {[%clk 0:00:54]} 31. Kg2 {[%clk 0:00:33]}  Rg8 {[%clk 0:00:49]} 32. Bg5 {[%clk 0:00:32]}  Rf8 {[%clk 0:00:46]} 33. Qxf8 {[%clk 0:00:29]}  Rf4+ {[%clk 0:00:46]} 34. Kg1 {[%clk 0:00:25]}  Rxf8 {[%clk 0:00:44]} 35. h5 {[%clk 0:00:24]}  Qf3 {[%clk 0:00:43]} 36. h6 {[%clk 0:00:23]}  Rf5 {[%clk 0:00:33]} 37. h7 {[%clk 0:00:21]}  Qh5 {[%clk 0:00:29]} 38. Bh4 {[%clk 0:00:20]}  Qxh7 {[%clk 0:00:29]} 39. Rxd4 {[%clk 0:00:21]}  Qf7 {[%clk 0:00:28]} 40. Rd3 {[%clk 0:00:20]}  Rxf2 {[%clk 0:00:28]} 41. Rd1 {[%clk 0:00:21]}  Qf3 {[%clk 0:00:27]} 0-1


[Site "https://www.chess.com"]

[Event "Titled Tuesday Blitz March 22 Late 2022"]
[White "Garagulya, Konstantin"]
[Black "Ibarra Jerez, Jose Carlos"]
[WhiteFideId "4128931"]
[BlackFideId "2226332"]
[WhiteElo "2329"]
[BlackElo "2626"]
[Result "0-1"]
[Round "01"]
[TimeControl "180+1"]
[Date "2022.03.22"]
[WhiteClock "0:00:02"]
[BlackClock "0:00:05"]

1. d4 {[%clk 0:02:50]}  Nf6 {[%clk 0:02:57]} 2. Nf3 {[%clk 0:02:50]}  g6 {[%clk 0:02:57]} 3. Nc3 {[%clk 0:02:49]}  d5 {[%clk 0:02:53]} 4. Bf4 {[%clk 0:02:48]}  Bg7 {[%clk 0:02:46]} 5. e3 {[%clk 0:02:49]}  O-O {[%clk 0:02:40]} 6. Nb5 {[%clk 0:02:49]}  Ne8 {[%clk 0:02:36]} 7. c4 {[%clk 0:02:48]}  dxc4 {[%clk 0:02:31]} 8. Bxc4 {[%clk 0:02:48]}  a6 {[%clk 0:02:31]} 9. Nc3 {[%clk 0:02:47]}  b5 {[%clk 0:02:31]} 10. Bd3 {[%clk 0:02:47]}  Bb7 {[%clk 0:02:30]} 11. Be4 {[%clk 0:02:47]}  c6 {[%clk 0:02:28]} 12. O-O {[%clk 0:02:46]}  Nd7 {[%clk 0:02:27]} 13. Rc1 {[%clk 0:02:46]}  Nef6 {[%clk 0:02:23]} 14. a3 {[%clk 0:02:25]}  Rc8 {[%clk 0:02:15]} 15. Qe2 {[%clk 0:02:21]}  Qb6 {[%clk 0:02:09]} 16. Rfd1 {[%clk 0:02:17]}  Nxe4 {[%clk 0:01:58]} 17. Nxe4 {[%clk 0:02:17]}  c5 {[%clk 0:01:56]} 18. dxc5 {[%clk 0:02:09]}  Nxc5 {[%clk 0:01:54]} 19. Nxc5 {[%clk 0:02:10]}  Rxc5 {[%clk 0:01:54]} 20. b4 {[%clk 0:02:07]}  Rxc1 {[%clk 0:01:37]} 21. Rxc1 {[%clk 0:02:07]}  Rc8 {[%clk 0:01:36]} 22. Rxc8+ {[%clk 0:02:06]}  Bxc8 {[%clk 0:01:37]} 23. Be5 {[%clk 0:02:04]}  f6 {[%clk 0:01:34]} 24. Bd4 {[%clk 0:02:03]}  Qc6 {[%clk 0:01:34]} 25. Bc5 {[%clk 0:02:02]}  Kf7 {[%clk 0:01:32]} 26. Nd4 {[%clk 0:02:00]}  Qd5 {[%clk 0:01:30]} 27. e4 {[%clk 0:01:57]}  Qd7 {[%clk 0:01:19]} 28. Qa2+ {[%clk 0:01:56]}  e6 {[%clk 0:01:15]} 29. f4 {[%clk 0:01:37]}  f5 {[%clk 0:01:05]} 30. e5 {[%clk 0:01:36]}  Bb7 {[%clk 0:00:58]} 31. Kf2 {[%clk 0:01:28]}  Bh6 {[%clk 0:00:47]} 32. g3 {[%clk 0:01:23]}  Bd5 {[%clk 0:00:41]} 33. Qc2 {[%clk 0:01:19]}  Ba8 {[%clk 0:00:39]} 34. Qa2 {[%clk 0:01:18]}  Bd5 {[%clk 0:00:35]} 35. Qc2 {[%clk 0:01:17]}  g5 {[%clk 0:00:34]} 36. fxg5 {[%clk 0:00:54]}  Bxg5 {[%clk 0:00:31]} 37. Bd6 {[%clk 0:00:55]}  Ba8 {[%clk 0:00:26]} 38. h4 {[%clk 0:00:39]}  Bd8 {[%clk 0:00:22]} 39. Ke3 {[%clk 0:00:33]}  Bb6 {[%clk 0:00:20]} 40. Qe2 {[%clk 0:00:31]}  Kg6 {[%clk 0:00:17]} 41. g4 {[%clk 0:00:28]}  Qc6 {[%clk 0:00:15]} 42. gxf5+ {[%clk 0:00:26]}  exf5 {[%clk 0:00:16]} 43. h5+ {[%clk 0:00:25]}  Kg7 {[%clk 0:00:10]} 44. Kd2 {[%clk 0:00:17]}  Bxd4 {[%clk 0:00:09]} 45. h6+ {[%clk 0:00:03]}  Kg6 {[%clk 0:00:06]} 46. Qh2 {[%clk 0:00:01]}  Qc3+ {[%clk 0:00:06]} 47. Kd1 {[%clk 0:00:02]}  Bf3+ {[%clk 0:00:05]} 0-1


[Site "https://www.chess.com"]

[Event "Titled Tuesday Blitz March 22 Late 2022"]
[White "Gatterer, Florian"]
[Black "Papasimakopoulos, Alexandros"]
[WhiteFideId "811688"]
[BlackFideId "4244125"]
[WhiteElo "2218"]
[BlackElo "2340"]
[Result "0-1"]
[Round "01"]
[TimeControl "180+1"]
[Date "2022.03.22"]
[WhiteClock "0:00:18"]
[BlackClock "0:00:30"]

1. c4 {[%clk 0:03:00]}  e6 {[%clk 0:02:52]} 2. Nf3 {[%clk 0:02:59]}  d5 {[%clk 0:02:52]} 3. d4 {[%clk 0:02:57]}  Nf6 {[%clk 0:02:49]} 4. g3 {[%clk 0:02:56]}  Bb4+ {[%clk 0:02:49]} 5. Bd2 {[%clk 0:02:56]}  Be7 {[%clk 0:02:50]} 6. Bg2 {[%clk 0:02:56]}  O-O {[%clk 0:02:50]} 7. O-O {[%clk 0:02:56]}  c6 {[%clk 0:02:49]} 8. Qc2 {[%clk 0:02:54]}  Ne4 {[%clk 0:02:49]} 9. Bf4 {[%clk 0:02:48]}  Nd7 {[%clk 0:02:49]} 10. Nbd2 {[%clk 0:02:48]}  f5 {[%clk 0:02:49]} 11. Ne5 {[%clk 0:02:48]}  Bf6 {[%clk 0:02:42]} 12. e3 {[%clk 0:02:34]}  Nb6 {[%clk 0:02:31]} 13. Nxe4 {[%clk 0:02:25]}  fxe4 {[%clk 0:02:25]} 14. cxd5 {[%clk 0:02:15]}  exd5 {[%clk 0:02:24]} 15. h4 {[%clk 0:02:06]}  Qe7 {[%clk 0:02:18]} 16. a4 {[%clk 0:02:03]}  Nd7 {[%clk 0:02:16]} 17. Ng4 {[%clk 0:01:43]}  h6 {[%clk 0:01:55]} 18. Nxf6+ {[%clk 0:01:32]}  Nxf6 {[%clk 0:01:56]} 19. Qc5 {[%clk 0:01:19]}  Qf7 {[%clk 0:01:34]} 20. Bd6 {[%clk 0:01:17]}  Rd8 {[%clk 0:01:32]} 21. Bf4 {[%clk 0:01:08]}  Bg4 {[%clk 0:01:28]} 22. a5 {[%clk 0:01:07]}  Qe6 {[%clk 0:01:16]} 23. Qc3 {[%clk 0:00:57]}  Be2 {[%clk 0:01:03]} 24. Rfe1 {[%clk 0:00:53]}  Ba6 {[%clk 0:01:03]} 25. Bf1 {[%clk 0:00:39]}  Bxf1 {[%clk 0:01:01]} 26. Rxf1 {[%clk 0:00:39]}  Qh3 {[%clk 0:01:01]} 27. Qc2 {[%clk 0:00:33]}  g5 {[%clk 0:00:54]} 28. Be5 {[%clk 0:00:26]}  Ng4 {[%clk 0:00:51]} 29. f3 {[%clk 0:00:26]}  Nxe3 {[%clk 0:00:43]} 30. Qf2 {[%clk 0:00:19]}  Nxf1 {[%clk 0:00:38]} 31. Rxf1 {[%clk 0:00:20]}  Rf8 {[%clk 0:00:37]} 32. Qe3 {[%clk 0:00:19]}  Qxf1+ {[%clk 0:00:32]} 33. Kxf1 {[%clk 0:00:18]}  Rxf3+ {[%clk 0:00:33]} 34. Qxf3 {[%clk 0:00:18]}  exf3 {[%clk 0:00:34]} 35. Kf2 {[%clk 0:00:19]}  g4 {[%clk 0:00:33]} 36. h5 {[%clk 0:00:18]}  Rf8 {[%clk 0:00:31]} 37. Bf4 {[%clk 0:00:18]}  Rxf4 {[%clk 0:00:30]} 38. gxf4 {[%clk 0:00:19]}  Kf7 {[%clk 0:00:30]} 39. b4 {[%clk 0:00:19]}  Kf6 {[%clk 0:00:29]} 40. Kg3 {[%clk 0:00:18]}  Kf5 {[%clk 0:00:29]} 41. a6 {[%clk 0:00:19]}  b5 {[%clk 0:00:28]} 42. Kf2 {[%clk 0:00:18]}  Kxf4 {[%clk 0:00:29]} 43. Kf1 {[%clk 0:00:18]}  g3 {[%clk 0:00:30]} 0-1


[Site "https://www.chess.com"]

[Event "Titled Tuesday Blitz March 22 Late 2022"]
[White "Golubka, Petro"]
[Black "Oro, Luis"]
[WhiteFideId "14114224"]
[BlackFideId "104094"]
[WhiteElo "2346"]
[BlackElo "2314"]
[Result "1-0"]
[Round "01"]
[TimeControl "180+1"]
[Date "2022.03.22"]
[WhiteClock "0:00:27"]
[BlackClock "0:00:12"]

1. d4 {[%clk 0:02:58]}  Nf6 {[%clk 0:02:58]} 2. f3 {[%clk 0:02:56]}  g6 {[%clk 0:02:53]} 3. e4 {[%clk 0:02:53]}  d6 {[%clk 0:02:52]} 4. Be3 {[%clk 0:02:53]}  Bg7 {[%clk 0:02:51]} 5. Qd2 {[%clk 0:02:53]}  Nbd7 {[%clk 0:02:49]} 6. c4 {[%clk 0:02:50]}  e5 {[%clk 0:02:48]} 7. d5 {[%clk 0:02:50]}  O-O {[%clk 0:02:48]} 8. Nc3 {[%clk 0:02:51]}  a5 {[%clk 0:02:45]} 9. Bd3 {[%clk 0:02:50]}  Nc5 {[%clk 0:02:44]} 10. Bc2 {[%clk 0:02:51]}  Nfd7 {[%clk 0:02:41]} 11. Nge2 {[%clk 0:02:51]}  f5 {[%clk 0:02:40]} 12. O-O-O {[%clk 0:02:51]}  f4 {[%clk 0:02:40]} 13. Bf2 {[%clk 0:02:50]}  g5 {[%clk 0:02:40]} 14. b3 {[%clk 0:02:49]}  Qe7 {[%clk 0:02:34]} 15. Kb2 {[%clk 0:02:47]}  h5 {[%clk 0:02:30]} 16. a3 {[%clk 0:02:43]}  b6 {[%clk 0:02:20]} 17. b4 {[%clk 0:02:40]}  axb4 {[%clk 0:02:19]} 18. axb4 {[%clk 0:02:41]}  Na6 {[%clk 0:02:19]} 19. Nb5 {[%clk 0:02:37]}  Bb7 {[%clk 0:02:17]} 20. Ra1 {[%clk 0:02:36]}  Nf6 {[%clk 0:02:13]} 21. Kb3 {[%clk 0:02:33]}  Qd7 {[%clk 0:02:10]} 22. Nec3 {[%clk 0:02:27]}  Rfd8 {[%clk 0:02:08]} 23. Rhb1 {[%clk 0:02:21]}  Bf8 {[%clk 0:02:06]} 24. Ra4 {[%clk 0:02:17]}  c6 {[%clk 0:01:58]} 25. dxc6 {[%clk 0:02:16]}  Bxc6 {[%clk 0:01:58]} 26. Rba1 {[%clk 0:02:14]}  Nc7 {[%clk 0:01:48]} 27. Bxb6 {[%clk 0:02:04]}  Rxa4 {[%clk 0:01:47]} 28. Rxa4 {[%clk 0:02:03]}  Bxb5 {[%clk 0:01:37]} 29. cxb5 {[%clk 0:01:58]}  Nxb5 {[%clk 0:01:10]} 30. Nxb5 {[%clk 0:01:51]}  Rb8 {[%clk 0:01:09]} 31. Ra6 {[%clk 0:01:35]}  Qxb5 {[%clk 0:01:06]} 32. Bd3 {[%clk 0:01:35]}  Qd7 {[%clk 0:00:57]} 33. Bc4+ {[%clk 0:01:32]}  Kg7 {[%clk 0:00:55]} 34. b5 {[%clk 0:01:31]}  Be7 {[%clk 0:00:49]} 35. Ra7 {[%clk 0:01:25]}  Rb7 {[%clk 0:00:46]} 36. Rxb7 {[%clk 0:01:24]}  Qxb7 {[%clk 0:00:47]} 37. Bf2 {[%clk 0:01:23]}  Nd7 {[%clk 0:00:47]} 38. Qd5 {[%clk 0:01:21]}  Qxd5 {[%clk 0:00:45]} 39. Bxd5 {[%clk 0:01:22]}  Bd8 {[%clk 0:00:44]} 40. Bc6 {[%clk 0:01:18]}  Nb6 {[%clk 0:00:41]} 41. Kb4 {[%clk 0:01:11]}  Nc8 {[%clk 0:00:36]} 42. Bd7 {[%clk 0:01:08]}  Nb6 {[%clk 0:00:36]} 43. Be6 {[%clk 0:01:07]}  Kf6 {[%clk 0:00:35]} 44. Bb3 {[%clk 0:01:04]}  Ke7 {[%clk 0:00:33]} 45. Ka5 {[%clk 0:01:02]}  Nc4+ {[%clk 0:00:26]} 46. Ka6 {[%clk 0:01:01]}  Ne3 {[%clk 0:00:24]} 47. Bxe3 {[%clk 0:00:48]}  fxe3 {[%clk 0:00:25]} 48. Bc4 {[%clk 0:00:48]}  Kd7 {[%clk 0:00:23]} 49. b6 {[%clk 0:00:43]}  Kc6 {[%clk 0:00:20]} 50. b7 {[%clk 0:00:39]}  Bc7 {[%clk 0:00:18]} 51. Ka7 {[%clk 0:00:40]}  Kc5 {[%clk 0:00:13]} 52. Bf1 {[%clk 0:00:38]}  Kd4 {[%clk 0:00:14]} 53. b8=Q {[%clk 0:00:31]}  Bxb8+ {[%clk 0:00:14]} 54. Kxb8 {[%clk 0:00:32]}  Kc3 {[%clk 0:00:14]} 55. Kc7 {[%clk 0:00:32]}  Kd2 {[%clk 0:00:15]} 56. Kxd6 {[%clk 0:00:31]}  Ke1 {[%clk 0:00:16]} 57. Ba6 {[%clk 0:00:31]}  Kf2 {[%clk 0:00:16]} 58. Kxe5 {[%clk 0:00:31]}  Kxg2 {[%clk 0:00:17]} 59. Kf5 {[%clk 0:00:31]}  Kxf3 {[%clk 0:00:14]} 60. e5 {[%clk 0:00:30]}  g4 {[%clk 0:00:14]} 61. Kg5 {[%clk 0:00:28]}  Ke4 {[%clk 0:00:12]} 62. e6 {[%clk 0:00:27]} 1-0


[Site "https://www.chess.com"]

[Event "Titled Tuesday Blitz March 22 Late 2022"]
[White "Gulecyuz, Deniz"]
[Black "Karttunen, Mika"]
[WhiteFideId "30921341"]
[BlackFideId "502081"]
[WhiteElo "1923"]
[BlackElo "2343"]
[Result "0-1"]
[Round "01"]
[TimeControl "180+1"]
[Date "2022.03.22"]
[WhiteClock "0:00:10"]
[BlackClock "0:00:22"]

1. e4 {[%clk 0:03:00]}  c5 {[%clk 0:02:59]} 2. Nf3 {[%clk 0:03:01]}  d6 {[%clk 0:02:59]} 3. d4 {[%clk 0:03:01]}  cxd4 {[%clk 0:03:00]} 4. Nxd4 {[%clk 0:03:02]}  Nf6 {[%clk 0:03:00]} 5. Nc3 {[%clk 0:03:03]}  a6 {[%clk 0:03:00]} 6. Bg5 {[%clk 0:03:02]}  e6 {[%clk 0:03:00]} 7. f4 {[%clk 0:03:03]}  Qb6 {[%clk 0:03:00]} 8. Qd2 {[%clk 0:02:41]}  Qxb2 {[%clk 0:03:00]} 9. Rb1 {[%clk 0:02:42]}  Qa3 {[%clk 0:03:00]} 10. f5 {[%clk 0:02:36]}  Nc6 {[%clk 0:02:59]} 11. fxe6 {[%clk 0:02:21]}  fxe6 {[%clk 0:02:58]} 12. Be2 {[%clk 0:01:53]}  Qc5 {[%clk 0:02:21]} 13. Bxf6 {[%clk 0:01:41]}  gxf6 {[%clk 0:02:21]} 14. Nxc6 {[%clk 0:01:40]}  bxc6 {[%clk 0:02:21]} 15. Na4 {[%clk 0:01:30]}  Qe5 {[%clk 0:01:46]} 16. Nb6 {[%clk 0:01:04]}  Rb8 {[%clk 0:01:46]} 17. Rb3 {[%clk 0:01:04]}  d5 {[%clk 0:01:22]} 18. exd5 {[%clk 0:00:53]}  cxd5 {[%clk 0:01:12]} 19. Nxc8 {[%clk 0:00:38]}  Rxc8 {[%clk 0:01:12]} 20. O-O {[%clk 0:00:36]}  Bc5+ {[%clk 0:01:08]} 21. Kh1 {[%clk 0:00:36]}  O-O {[%clk 0:00:58]} 22. Rg3+ {[%clk 0:00:29]}  Kh8 {[%clk 0:00:59]} 23. Qh6 {[%clk 0:00:29]}  f5 {[%clk 0:00:47]} 24. Bxa6 {[%clk 0:00:23]}  Rb8 {[%clk 0:00:44]} 25. Bd3 {[%clk 0:00:22]}  Rg8 {[%clk 0:00:40]} 26. Rh3 {[%clk 0:00:21]}  Rg7 {[%clk 0:00:40]} 27. Qf4 {[%clk 0:00:19]}  Qxf4 {[%clk 0:00:30]} 28. Rxf4 {[%clk 0:00:19]}  Bd6 {[%clk 0:00:28]} 29. Rf1 {[%clk 0:00:19]}  f4 {[%clk 0:00:28]} 30. a4 {[%clk 0:00:18]}  e5 {[%clk 0:00:28]} 31. Bb5 {[%clk 0:00:18]}  e4 {[%clk 0:00:29]} 32. Rd1 {[%clk 0:00:18]}  Rg5 {[%clk 0:00:29]} 33. Rb3 {[%clk 0:00:17]}  Bc5 {[%clk 0:00:29]} 34. h3 {[%clk 0:00:16]}  Kg7 {[%clk 0:00:27]} 35. Bc6 {[%clk 0:00:15]}  Rxb3 {[%clk 0:00:26]} 36. cxb3 {[%clk 0:00:16]}  e3 {[%clk 0:00:25]} 37. Bb5 {[%clk 0:00:10]}  Bb4 {[%clk 0:00:24]} 38. Be2 {[%clk 0:00:10]}  Bd2 {[%clk 0:00:23]} 39. b4 {[%clk 0:00:09]}  Bxb4 {[%clk 0:00:23]} 40. Rd4 {[%clk 0:00:10]}  Bd6 {[%clk 0:00:22]} 41. Bf3 {[%clk 0:00:10]}  Bc5 {[%clk 0:00:21]} 42. Kg1 {[%clk 0:00:10]}  Bxd4 {[%clk 0:00:22]} 0-1


[Site "https://www.chess.com"]